fUST/lending_fUST_20240828
["ID","MTS","AMOUNT","RATE_DAILY","PERIOD"]
[336417463,1724819440807,-501.41080509,0.00010958,2]
[336417465,1724819440818,-500.0,0.00010958,2]
[336417467,1724819440828,-501.64300067,0.00010958,2]
[336417469,1724819440839,-505.69797483,0.00010958,2]
[336417471,1724819440848,-500.0,0.00010958,2]
[336417473,1724819440858,-500.0,0.00010958,2]
[336417475,1724819440867,-500.0,0.00010958,2]
[336417477,1724819440876,-500.0,0.00010958,2]
[336417479,1724819440886,-500.0,0.00010958,2]
[336417481,1724819440895,-500.0,0.00010958,2]
[336417483,1724819440904,-500.0,0.00010958,2]
[336417486,1724819440914,-500.0,0.00010958,2]
[336417488,1724819440923,-500.0,0.00010958,2]
[336417490,1724819440933,-500.0,0.00010958,2]
[336417492,1724819440943,-500.0,0.00010958,2]
[336417494,1724819440952,-500.0,0.00010958,2]
[336417496,1724819440962,-500.0,0.00010958,2]
[336417498,1724819440971,-500.0,0.00010958,2]
[336417500,1724819440981,-665.33,0.00010958,2]
[336417502,1724819440990,-500.0,0.00010958,2]
[336417504,1724819440999,-503.42218922,0.00010958,2]
[336417506,1724819441010,-665.33,0.00010958,2]
[336417508,1724819441019,-665.33,0.00010958,2]
[336417510,1724819441030,-500.0,0.00010958,2]
[336417512,1724819441040,-665.33,0.00010958,2]
[336417514,1724819441049,-665.33,0.00010958,2]
[336417516,1724819441059,-500.49295349,0.00010958,2]
[336417518,1724819441067,-500.0,0.00010958,2]
[336417520,1724819441077,-500.0,0.00010958,2]
[336417522,1724819441090,-500.0,0.00010958,2]
[336417524,1724819441104,-506.34058215,0.00010958,2]
[336417526,1724819441116,-502.21806585,0.00010958,2]
[336417528,1724819441126,-500.0,0.00010958,2]
[336417530,1724819441136,-500.0,0.00010958,2]
[336417532,1724819441145,-500.0,0.00010958,2]
[336417534,1724819441155,-1176.67,0.00010958,2]
[336417537,1724819441164,-261.19560127,0.00010958,2]
[336417539,1724819441174,-500.0,0.00010958,2]
[336417541,1724819441183,-500.0,0.00010958,2]
[336417543,1724819441193,-500.0,0.00010958,2]
[336417545,1724819441203,-500.0,0.00010958,2]
[336417547,1724819441214,-500.0,0.00010958,2]
[336417549,1724819441223,-500.0,0.00010958,2]
[336417551,1724819441234,-500.0,0.00010958,2]
[336417553,1724819441243,-500.0,0.00010958,2]
[336417555,1724819441253,-500.0,0.00010958,2]
[336417557,1724819441262,-500.9563934,0.00010958,2]
[336417559,1724819441271,-500.0,0.00010958,2]
[336417561,1724819441281,-500.0,0.00010958,2]
[336417563,1724819441290,-500.0,0.00010958,2]
[336417565,1724819441299,-500.0,0.00010958,2]
[336417567,1724819441309,-500.0,0.00010958,2]
[336417569,1724819441318,-500.0,0.00010958,2]
[336417571,1724819441327,-500.0,0.00010958,2]
[336417573,1724819441339,-500.0,0.00010958,2]
[336417575,1724819441348,-500.0,0.00010958,2]
[336417577,1724819441357,-502.25351092,0.00010958,2]
[336417579,1724819441367,-500.0,0.00010958,2]
[336417581,1724819441377,-500.0,0.00010958,2]
[336417583,1724819441387,-500.0,0.00010958,2]
[336417584,1724819441396,-500.0,0.00010958,2]
[336417586,1724819441405,-500.0,0.00010958,2]
[336417588,1724819441415,-500.0,0.00010958,2]
[336417590,1724819441425,-500.0,0.00010958,2]
[336417593,1724819441436,-500.0,0.00010958,2]
[336417595,1724819441446,-1567.17,0.00010958,2]
[336417597,1724819441456,-500.0,0.00010958,2]
[336417599,1724819441465,-500.0,0.00010958,2]
[336417601,1724819441474,-500.0,0.00010958,2]
[336417603,1724819441484,-500.0,0.00010958,2]
[336417605,1724819441493,-500.0,0.00010958,2]
[336417607,1724819441502,-500.0,0.00010958,2]
[336417609,1724819441511,-500.0,0.00010958,2]
[336417611,1724819441521,-500.0,0.00010958,2]
[336417613,1724819441530,-850.91,0.00010958,2]
[336417615,1724819441539,-500.0,0.00010958,2]
[336417617,1724819441548,-500.0,0.00010958,2]
[336417619,1724819441557,-931.43,0.00010958,2]
[336417621,1724819441566,-500.0,0.00010958,2]
[336417622,1724819441576,-500.0,0.00010958,2]
[336417624,1724819441586,-500.0,0.00010958,2]
[336417626,1724819441595,-502.50873327,0.00010958,2]
[336417628,1724819441605,-500.0,0.00010958,2]
[336417630,1724819441616,-500.0,0.00010958,2]
[336417632,1724819441626,-8351.1,0.00010958,2]
[336417634,1724819441636,-208.59094196,0.00010958,2]
[336417636,1724819441645,-500.0,0.00010958,2]
[336417638,1724819441657,-500.0,0.00010958,2]
[336417640,1724819441666,-500.0,0.00010958,2]
[336417642,1724819441675,-500.0,0.00010958,2]
[336417644,1724819441685,-500.0,0.00010958,2]
[336417646,1724819441694,-315.48079459,0.00010958,2]
[336417648,1724819441704,-500.0,0.00010958,2]
[336417650,1724819441713,-500.0,0.00010958,2]
[336417667,1724819441866,-501.16804035,0.00010958,2]
[336417669,1724819441876,-501.26345995,0.00010958,2]
[336417671,1724819441886,-500.0,0.00010958,2]
[336417673,1724819441895,-500.0,0.00010958,2]
[336417675,1724819441904,-500.0,0.00010958,2]
[336417677,1724819441913,-500.0,0.00010958,2]
[336417679,1724819441923,-500.0,0.00010958,2]
[336417681,1724819441932,-505.29023737,0.00010958,2]
[336417683,1724819441942,-500.0,0.00010958,2]
[336417686,1724819441951,-628.50322203,0.00010958,2]
[336417687,1724819441961,-326.75646293,0.00010958,2]
[336417689,1724819441970,-500.0,0.00010958,2]
[336417692,1724819441979,-500.0,0.00010958,2]
[336417693,1724819441988,-500.0,0.00010958,2]
[336417695,1724819441997,-500.0,0.00010958,2]
[336417698,1724819442009,-217.905273,0.00010959,2]
[336417700,1724819442018,-199.50459183,0.00010973,2]
[336417702,1724819442027,-435.0771508,0.00010973,2]
[336417704,1724819442037,-155.0,0.00010973,2]
[336417706,1724819442047,-500.50433157,0.00010973,2]
[336417708,1724819442057,-500.0,0.00010973,2]
[336417710,1724819442067,-500.0,0.00010973,2]
[336417712,1724819442077,-8425.53848052,0.00011132,2]
[336417714,1724819442090,-500.0,0.00011231,2]
[336417717,1724819442102,-500.0,0.00011231,2]
[336417719,1724819442113,-511.7949906,0.00011231,2]
[336417721,1724819442122,-500.0,0.00011231,2]
[336417723,1724819442132,-412.87226166,0.00011231,2]
[336417725,1724819442142,-500.0,0.00011231,2]
[336417727,1724819442152,-500.0,0.00011231,2]
[336417729,1724819442162,-665.33,0.00011231,2]
[336417731,1724819442171,-665.33,0.00011231,2]
[336417733,1724819442180,-665.33,0.00011231,2]
[336417735,1724819442191,-526.94736651,0.00011232,2]
[336417737,1724819442201,-500.0,0.00011232,2]
[336417739,1724819442211,-500.0,0.00011232,2]
[336417741,1724819442220,-500.0,0.00011232,2]
[336417743,1724819442230,-500.0,0.00011232,2]
[336417746,1724819442240,-585.06316579,0.00011232,2]
[336417748,1724819442249,-505.10180024,0.00011232,2]
[336417749,1724819442259,-500.0,0.00011232,2]
[336417752,1724819442269,-500.0,0.00011232,2]
[336417754,1724819442279,-500.0,0.00011232,2]
[336417756,1724819442289,-503.02615329,0.00011232,2]
[336417758,1724819442298,-500.0,0.00011232,2]
[336417760,1724819442308,-500.0,0.00011232,2]
[336417762,1724819442318,-500.0,0.00011232,2]
[336417763,1724819442327,-500.0,0.00011232,2]
[336417764,1724819442337,-500.0,0.00011232,2]
[336417765,1724819442347,-500.0,0.00011232,2]
[336417766,1724819442357,-500.0,0.00011232,2]
[336417767,1724819442366,-500.0,0.00011232,2]
[336417768,1724819442376,-500.0,0.00011232,2]
[336417769,1724819442385,-500.0,0.00011232,2]
[336417770,1724819442395,-500.0,0.00011232,2]
[336417771,1724819442404,-500.0,0.00011232,2]
[336417772,1724819442414,-500.0,0.00011232,2]
[336417773,1724819442423,-647.23,0.00011232,2]
[336417774,1724819442433,-594.38,0.00011232,2]
[336417775,1724819442442,-500.0,0.00011232,2]
[336417776,1724819442452,-500.0,0.00011232,2]
[336417777,1724819442461,-500.0,0.00011232,2]
[336417778,1724819442470,-501.65525648,0.00011232,2]
[336417780,1724819442480,-500.0,0.00011232,2]
[336417782,1724819442490,-500.0,0.00011232,2]
[336417784,1724819442500,-460.65,0.00011232,2]
[336417786,1724819442509,-230.31744761,0.00011232,2]
[336417788,1724819442519,-500.0,0.00011232,2]
[336417790,1724819442528,-500.0,0.00011232,2]
[336417792,1724819442537,-205.01,0.00011232,2]
[336417794,1724819442547,-500.0,0.00011232,2]
[336417797,1724819442557,-500.0,0.00011232,2]
[336417799,1724819442567,-500.0,0.00011232,2]
[336417802,1724819442576,-500.0,0.00011232,2]
[336417806,1724819442585,-500.0,0.00011232,2]
[336417810,1724819442595,-500.0,0.00011232,2]
[336417813,1724819442604,-500.0,0.00011232,2]
[336417816,1724819442613,-500.0,0.00011232,2]
[336417819,1724819442622,-500.0,0.00011232,2]
[336417821,1724819442633,-500.0,0.00011232,2]
[336417824,1724819442643,-500.0,0.00011232,2]
[336417826,1724819442653,-243.9,0.00011232,2]
[336417829,1724819442663,-584.62,0.00011232,2]
[336417831,1724819442672,-500.0,0.00011232,2]
[336417835,1724819442682,-500.0,0.00011232,2]
[336417836,1724819442691,-223.27307692,0.00011232,2]
[336417838,1724819442701,-500.0,0.00011232,2]
[336417840,1724819442710,-500.0,0.00011232,2]
[336417842,1724819442724,-500.0,0.00011232,2]
[336417844,1724819442733,-187.62,0.00011232,2]
[336417846,1724819442743,-500.0,0.00011232,2]
[336417848,1724819442753,-500.0,0.00011232,2]
[336417850,1724819442765,-500.0,0.00011232,2]
[336417852,1724819442774,-500.0,0.00011232,2]
[336417854,1724819442783,-435.31121526,0.00011232,2]
[336417856,1724819442793,-500.0,0.00011232,2]
[336417858,1724819442804,-500.0,0.00011232,2]
[336417860,1724819442813,-500.0,0.00011232,2]
[336417862,1724819442822,-500.0,0.00011232,2]
[336417864,1724819442832,-500.0,0.00011232,2]
[336417866,1724819442841,-500.0,0.00011232,2]
[336417868,1724819442851,-500.0,0.00011232,2]
[336417870,1724819442860,-500.0,0.00011232,2]
[336417872,1724819442869,-194.43,0.00011232,2]
[336417874,1724819442878,-500.0,0.00011232,2]
[336417876,1724819442887,-500.0,0.00011232,2]
[336417878,1724819442896,-500.0,0.00011232,2]
[336417880,1724819442906,-503.29847344,0.00011232,2]
[336417882,1724819442915,-500.0,0.00011232,2]
[336417884,1724819442925,-503.68151862,0.00011232,2]
[336417885,1724819442934,-422.1521709,0.00011232,2]
[336417887,1724819442944,-507.11129092,0.00011232,2]
[336417889,1724819442955,-500.0,0.00011232,2]
[336417891,1724819442964,-591.89,0.00011232,2]
[336417893,1724819442973,-500.0,0.00011232,2]
[336417895,1724819442983,-500.0,0.00011232,2]
[336417897,1724819442995,-500.0,0.00011232,2]
[336417899,1724819443006,-500.0,0.00011232,2]
[336417901,1724819443015,-500.0,0.00011232,2]
[336417903,1724819443025,-500.0,0.00011232,2]
[336417905,1724819443034,-500.0,0.00011232,2]
[336417907,1724819443043,-1115.71,0.00011232,2]
[336417909,1724819443053,-503.44373853,0.00011232,2]
[336417911,1724819443062,-525.66,0.00011232,2]
[336417913,1724819443072,-500.0,0.00011232,2]
[336417915,1724819443081,-500.0,0.00011232,2]
[336417917,1724819443096,-500.0,0.00011232,2]
[336417919,1724819443104,-500.0,0.00011232,2]
[336417921,1724819443113,-500.0,0.00011232,2]
[336417923,1724819443123,-501.45767318,0.00011232,2]
[336417925,1724819443133,-503.15118585,0.00011232,2]
[336417927,1724819443142,-500.0,0.00011232,2]
[336417929,1724819443151,-560.20579319,0.00011232,2]
[336417931,1724819443159,-500.0,0.00011232,2]
[336417932,1724819443168,-500.0,0.00011232,2]
[336417934,1724819443177,-500.0,0.00011232,2]
[336417936,1724819443186,-500.0,0.00011232,2]
[336417938,1724819443196,-500.0,0.00011232,2]
[336417940,1724819443206,-546.74,0.00011232,2]
[336417942,1724819443216,-500.0,0.00011232,2]
[336417944,1724819443225,-500.0,0.00011232,2]
[336417946,1724819443234,-500.0,0.00011232,2]
[336417948,1724819443244,-500.0,0.00011232,2]
[336417950,1724819443253,-500.0,0.00011232,2]
[336417952,1724819443263,-500.0,0.00011232,2]
[336417954,1724819443272,-856.36,0.00011232,2]
[336417956,1724819443281,-3124.85,0.00011232,2]
[336417958,1724819443290,-500.0,0.00011232,2]
[336417960,1724819443300,-500.0,0.00011232,2]
[336417962,1724819443310,-500.0,0.00011232,2]
[336417964,1724819443319,-300.67858138,0.00011232,2]
[336417966,1724819443328,-500.0,0.00011232,2]
[336417968,1724819443344,-501.39464723,0.00011232,2]
[336417970,1724819443353,-502.02519842,0.00011232,2]
[336417972,1724819443362,-500.0,0.00011232,2]
[336417974,1724819443373,-500.0,0.00011232,2]
[336417976,1724819443383,-500.0,0.00011232,2]
[336417978,1724819443392,-500.0,0.00011232,2]
[336417980,1724819443401,-410.11641657,0.00011232,2]
[336417982,1724819443410,-500.0,0.00011232,2]
[336417984,1724819443420,-1509.14,0.00011232,2]
[336417986,1724819443429,-500.0,0.00011232,2]
[336417988,1724819443438,-500.0,0.00011232,2]
[336417990,1724819443447,-501.38042307,0.00011232,2]
[336417992,1724819443457,-500.0,0.00011232,2]
[336417994,1724819443466,-500.0,0.00011232,2]
[336417996,1724819443476,-500.0,0.00011232,2]
[336417998,1724819443486,-502.14687425,0.00011232,2]
[336418000,1724819443495,-500.0,0.00011232,2]
[336418002,1724819443505,-502.92738681,0.00011232,2]
[336418004,1724819443515,-768.26,0.00011232,2]
[336418006,1724819443525,-500.0,0.00011232,2]
[336418008,1724819443534,-500.0,0.00011232,2]
[336418010,1724819443543,-500.0,0.00011232,2]
[336418011,1724819443552,-500.0,0.00011232,2]
[336418013,1724819443562,-868.72,0.00011232,2]
[336418015,1724819443571,-500.53941819,0.00011232,2]
[336418017,1724819443582,-500.0,0.00011232,2]
[336418019,1724819443592,-500.0,0.00011232,2]
[336418022,1724819443602,-500.0,0.00011232,2]
[336418024,1724819443612,-500.0,0.00011232,2]
[336418026,1724819443621,-500.0,0.00011232,2]
[336418027,1724819443630,-500.0,0.00011232,2]
[336418030,1724819443641,-510.33263118,0.00011232,2]
[336418032,1724819443651,-500.0,0.00011232,2]
[336418034,1724819443660,-649.76,0.00011232,2]
[336418036,1724819443670,-244.28,0.00011232,2]
[336418038,1724819443679,-500.0,0.00011232,2]
[336418040,1724819443689,-500.0,0.00011232,2]
[336418042,1724819443698,-500.0,0.00011232,2]
[336418044,1724819443707,-500.0,0.00011232,2]
[336418046,1724819443717,-500.0,0.00011232,2]
[336418048,1724819443729,-500.0,0.00011232,2]
[336418049,1724819443738,-500.0,0.00011232,2]
[336418051,1724819443748,-500.0,0.00011232,2]
[336418053,1724819443757,-500.0,0.00011232,2]
[336418055,1724819443767,-500.0,0.00011232,2]
[336418057,1724819443775,-500.0,0.00011232,2]
[336418059,1724819443785,-500.0,0.00011232,2]
[336418061,1724819443794,-1176.67,0.00011232,2]
[336418063,1724819443804,-500.0,0.00011232,2]
[336418065,1724819443814,-500.0,0.00011232,2]
[336418067,1724819443823,-500.0,0.00011232,2]
[336418069,1724819443834,-500.0,0.00011232,2]
[336418071,1724819443843,-500.0,0.00011232,2]
[336418073,1724819443852,-500.0,0.00011232,2]
[336418075,1724819443862,-355.95789634,0.00011232,2]
[336418077,1724819443871,-500.0,0.00011232,2]
[336418079,1724819443880,-310.17,0.00011232,2]
[336418081,1724819443890,-557.4459425,0.00011232,2]
[336418083,1724819443899,-500.0,0.00011232,2]
[336418085,1724819443908,-500.0,0.00011232,2]
[336418087,1724819443917,-500.0,0.00011232,2]
[336418089,1724819443926,-500.0,0.00011232,2]
[336418091,1724819443935,-1567.17,0.00011232,2]
[336418093,1724819443945,-500.0,0.00011232,2]
[336418095,1724819443954,-236.77219987,0.00011232,2]
[336418097,1724819443964,-850.91,0.00011232,2]
[336418099,1724819443974,-500.0,0.00011232,2]
[336418101,1724819443984,-931.43,0.00011232,2]
[336418103,1724819443993,-500.0,0.00011232,2]
[336418105,1724819444003,-229.40978399,0.00011232,2]
[336418107,1724819444013,-500.0,0.00011232,2]
[336418109,1724819444022,-500.0,0.00011232,2]
[336418111,1724819444031,-500.0,0.00011232,2]
[336418113,1724819444041,-8351.1,0.00011232,2]
[336418115,1724819444050,-500.0,0.00011232,2]
[336418117,1724819444059,-500.0,0.00011232,2]
[336418119,1724819444069,-500.0,0.00011232,2]
[336418121,1724819444079,-500.0,0.00011232,2]
[336418123,1724819444091,-500.0,0.00011232,2]
[336418125,1724819444101,-607.31,0.00011232,2]
[336418127,1724819444110,-500.0,0.00011232,2]
[336418129,1724819444120,-500.0,0.00011232,2]
[336418131,1724819444130,-500.0,0.00011232,2]
[336418133,1724819444139,-500.0,0.00011232,2]
[336418135,1724819444149,-500.0,0.00011232,2]
[336418138,1724819444158,-500.0,0.00011232,2]
[336418140,1724819444169,-500.0,0.00011232,2]
[336418142,1724819444179,-2611.26711056,0.00011268,2]
[336418144,1724819444188,-310.51011385,0.00011409,2]
[336418146,1724819444197,-817.98661284,0.00011409,2]
[336418147,1724819444206,-302.6741353,0.00011505,2]
[336418149,1724819444216,-665.33,0.00011505,2]
[336418151,1724819444226,-665.33,0.00011505,2]
[336418153,1724819444235,-500.0,0.00011506,2]
[336418155,1724819444244,-247.11,0.00011506,2]
[336418157,1724819444254,-377.22,0.00011506,2]
[336418159,1724819444263,-500.0,0.00011506,2]
[336418161,1724819444272,-500.0,0.00011506,2]
[336418163,1724819444282,-500.0,0.00011506,2]
[336418165,1724819444292,-500.0,0.00011506,2]
[336418167,1724819444301,-583.13266837,0.00011506,2]
[336418169,1724819444310,-500.0,0.00011506,2]
[336418171,1724819444319,-500.0,0.00011506,2]
[336418173,1724819444328,-500.0,0.00011506,2]
[336418175,1724819444339,-240.3207733,0.00011506,2]
[336418177,1724819444348,-597.37751733,0.00011506,2]
[336418179,1724819444358,-500.0,0.00011506,2]
[336418181,1724819444367,-500.0,0.00011506,2]
[336418184,1724819444378,-500.0,0.00011506,2]
[336418186,1724819444388,-202.68,0.00011506,2]
[336418187,1724819444397,-500.0,0.00011506,2]
[336418189,1724819444406,-511.71,0.00011506,2]
[336418191,1724819444416,-192.53,0.00011506,2]
[336418193,1724819444425,-500.0,0.00011506,2]
[336418195,1724819444435,-500.0,0.00011506,2]
[336418197,1724819444445,-500.0,0.00011506,2]
[336418199,1724819444455,-500.0,0.00011506,2]
[336418201,1724819444465,-318.07656927,0.00011506,2]
[336418204,1724819444478,-500.0,0.00011506,2]
[336418206,1724819444487,-500.0,0.00011506,2]
[336418208,1724819444497,-500.0,0.00011506,2]
[336418210,1724819444506,-500.0,0.00011506,2]
[336418212,1724819444517,-500.0,0.00011506,2]
[336418214,1724819444526,-500.0,0.00011506,2]
[336418216,1724819444536,-500.0,0.00011506,2]
[336418218,1724819444545,-638.79,0.00011506,2]
[336418220,1724819444554,-500.0,0.00011506,2]
[336418222,1724819444563,-500.0,0.00011506,2]
[336418224,1724819444575,-500.0,0.00011506,2]
[336418226,1724819444586,-151.62,0.00011506,2]
[336418228,1724819444598,-500.0,0.00011506,2]
[336418230,1724819444608,-500.0,0.00011506,2]
[336418232,1724819444618,-500.0,0.00011506,2]
[336418234,1724819444627,-500.0,0.00011506,2]
[336418237,1724819444638,-500.0,0.00011506,2]
[336418239,1724819444648,-365.08,0.00011506,2]
[336418241,1724819444660,-500.0,0.00011506,2]
[336418243,1724819444670,-500.0,0.00011506,2]
[336418245,1724819444680,-500.0,0.00011506,2]
[336418247,1724819444690,-500.0,0.00011506,2]
[336418249,1724819444699,-500.0,0.00011506,2]
[336418250,1724819444709,-500.0,0.00011506,2]
[336418252,1724819444718,-500.0,0.00011506,2]
[336418254,1724819444730,-500.0,0.00011506,2]
[336418256,1724819444739,-500.0,0.00011506,2]
[336418258,1724819444748,-358.89752231,0.00011506,2]
[336418260,1724819444758,-500.0,0.00011506,2]
[336418262,1724819444768,-500.0,0.00011506,2]
[336418264,1724819444777,-500.0,0.00011506,2]
[336418266,1724819444787,-299.49134427,0.00011506,2]
[336418268,1724819444796,-1115.71,0.00011506,2]
[336418270,1724819444806,-525.66,0.00011506,2]
[336418273,1724819444816,-277.42670703,0.00011506,2]
[336418274,1724819444825,-500.0,0.00011506,2]
[336418276,1724819444834,-500.0,0.00011506,2]
[336418278,1724819444843,-502.4938907,0.00011506,2]
[336418280,1724819444852,-500.0,0.00011506,2]
[336418282,1724819444862,-500.0,0.00011506,2]
[336418284,1724819444871,-371.07159877,0.00011506,2]
[336418286,1724819444881,-500.0,0.00011506,2]
[336418288,1724819444890,-500.0,0.00011506,2]
[336418290,1724819444899,-500.0,0.00011506,2]
[336418292,1724819444908,-500.0,0.00011506,2]
[336418294,1724819444918,-546.74,0.00011506,2]
[336418296,1724819444927,-500.0,0.00011506,2]
[336418298,1724819444936,-500.0,0.00011506,2]
[336418300,1724819444945,-500.0,0.00011506,2]
[336418302,1724819444954,-500.0,0.00011506,2]
[336418304,1724819444964,-856.36,0.00011506,2]
[336418306,1724819444973,-3124.85,0.00011506,2]
[336418308,1724819444982,-500.0,0.00011506,2]
[336418310,1724819444992,-500.0,0.00011506,2]
[336418312,1724819445001,-500.0,0.00011506,2]
[336418314,1724819445011,-500.0,0.00011506,2]
[336418316,1724819445020,-500.0,0.00011506,2]
[336418318,1724819445030,-500.0,0.00011506,2]
[336418321,1724819445039,-500.0,0.00011506,2]
[336418323,1724819445049,-573.14,0.00011506,2]
[336418325,1724819445059,-1509.14,0.00011506,2]
[336418326,1724819445068,-500.0,0.00011506,2]
[336418328,1724819445078,-500.0,0.00011506,2]
[336418331,1724819445090,-500.0,0.00011506,2]
[336418333,1724819445100,-500.0,0.00011506,2]
[336418335,1724819445112,-500.0,0.00011506,2]
[336418337,1724819445122,-768.26,0.00011506,2]
[336418339,1724819445133,-500.0,0.00011506,2]
[336418341,1724819445143,-868.72,0.00011506,2]
[336418343,1724819445153,-500.0,0.00011506,2]
[336418345,1724819445163,-500.0,0.00011506,2]
[336418347,1724819445174,-500.0,0.00011506,2]
[336418350,1724819445186,-500.0,0.00011506,2]
[336418352,1724819445198,-500.0,0.00011506,2]
[336418354,1724819445209,-500.0,0.00011506,2]
[336418356,1724819445218,-500.0,0.00011506,2]
[336418358,1724819445229,-500.0,0.00011506,2]
[336418360,1724819445241,-469.96,0.00011506,2]
[336418362,1724819445253,-500.0,0.00011506,2]
[336418364,1724819445263,-500.0,0.00011506,2]
[336418366,1724819445273,-1176.67,0.00011506,2]
[336418368,1724819445284,-500.0,0.00011506,2]
[336418370,1724819445293,-500.0,0.00011506,2]
[336418371,1724819445303,-500.0,0.00011506,2]
[336418372,1724819445313,-500.0,0.00011506,2]
[336418373,1724819445322,-500.0,0.00011506,2]
[336418374,1724819445334,-244.27,0.00011506,2]
[336418375,1724819445344,-252.08937695,0.00011506,2]
[336418376,1724819445353,-1567.17,0.00011506,2]
[336418377,1724819445363,-572.47813899,0.00011506,2]
[336418378,1724819445374,-850.91,0.00011506,2]
[336418379,1724819445383,-931.43,0.00011506,2]
[336418380,1724819445393,-500.0,0.00011506,2]
[336418381,1724819445403,-226.55,0.00011506,2]
[336418382,1724819445414,-500.0,0.00011506,2]
[336418383,1724819445426,-500.0,0.00011506,2]
[336418385,1724819445436,-8351.1,0.00011506,2]
[336418387,1724819445446,-500.0,0.00011506,2]
[336418389,1724819445458,-623.26,0.00011506,2]
[336418391,1724819445468,-500.0,0.00011506,2]
[336418393,1724819445478,-500.0,0.00011506,2]
[336418395,1724819445488,-500.0,0.00011506,2]
[336418397,1724819445498,-500.0,0.00011506,2]
[336418399,1724819445508,-585.37,0.00011506,2]
[336418401,1724819445518,-500.0,0.00011506,2]
[336418403,1724819445528,-500.0,0.00011506,2]
[336418405,1724819445539,-500.0,0.00011506,2]
[336418407,1724819445548,-500.0,0.00011506,2]
[336418409,1724819445557,-362.46,0.00011506,2]
[336418411,1724819445568,-217.905273,0.00011507,2]
[336418413,1724819445579,-1000.0,0.00011521,2]
[336418416,1724819445591,-600.0,0.00011543,2]
[336418418,1724819445601,-3000.0,0.0001168,2]
[336418420,1724819445611,-600.0,0.00011692,2]
[336418422,1724819445621,-600.0,0.00011692,2]
[336418424,1724819445632,-288.55434071,0.00011712,2]
[336418426,1724819445642,-812.39765115,0.00011712,2]
[336418428,1724819445653,-154.57491897,0.00011712,2]
[336418430,1724819445662,-154.57491897,0.00011731,2]
[336418432,1724819445673,-154.57491897,0.00011731,2]
[336418435,1724819445684,-197.54755828,0.00011731,2]
[336418437,1724819445696,-665.33,0.00011779,2]
[336418452,1724819445823,-502.05045916,0.0001178,2]
[336418455,1724819445851,-500.0,0.0001178,2]
[336418457,1724819445863,-577.55680481,0.0001178,2]
[336418459,1724819445875,-615.62314291,0.0001178,2]
[336418461,1724819445887,-500.0,0.0001178,2]
[336418463,1724819445896,-500.0,0.0001178,2]
[336418465,1724819445907,-500.0,0.0001178,2]
[336418468,1724819445918,-500.0,0.0001178,2]
[336418470,1724819445929,-216.58466152,0.0001178,2]
[336418472,1724819445940,-365.56,0.0001178,2]
[336418474,1724819445950,-310.3782227,0.0001178,2]
[336418476,1724819445961,-500.0,0.0001178,2]
[336418478,1724819445971,-500.0,0.0001178,2]
[336418480,1724819445981,-500.0,0.0001178,2]